Workbook

Sheet Feuil1
D1: Couts | H1: =E12-B12 -> 122 | I1: =H1*20 -> 2440
A2: A1 | B2: 2000 | C2: 0.01 | D2: =3.9*2 -> 7.8 | E2: =B2*(1+C2)-D2 -> 2012.2
A3: A2 | B3: 2000 | C3: 0.01 | D3: =3.9*2 -> 7.8 | E3: =B3*(1+C3)-D3 -> 2012.2
A4: A3 | B4: 2000 | C4: 0.01 | D4: =3.9*2 -> 7.8 | E4: =B4*(1+C4)-D4 -> 2012.2
A5: A4 | B5: 2000 | C5: 0.01 | D5: =3.9*2 -> 7.8 | E5: =B5*(1+C5)-D5 -> 2012.2
A6: A5 | B6: 2000 | C6: 0.01 | D6: =3.9*2 -> 7.8 | E6: =B6*(1+C6)-D6 -> 2012.2
A7: A6 | B7: 2000 | C7: 0.01 | D7: =3.9*2 -> 7.8 | E7: =B7*(1+C7)-D7 -> 2012.2
A8: A7 | B8: 2000 | C8: 0.01 | D8: =3.9*2 -> 7.8 | E8: =B8*(1+C8)-D8 -> 2012.2
A9: A8 | B9: 2000 | C9: 0.01 | D9: =3.9*2 -> 7.8 | E9: =B9*(1+C9)-D9 -> 2012.2
A10: A9 | B10: 2000 | C10: 0.01 | D10: =3.9*2 -> 7.8 | E10: =B10*(1+C10)-D10 -> 2012.2
A11: A10 | B11: 2000 | C11: 0.01 | D11: =3.9*2 -> 7.8 | E11: =B11*(1+C11)-D11 -> 2012.2
B12: =SUM(B2:B11) -> 20000 | C12: =F12/B12 -> 0.0061 | E12: =SUM(E2:E11) -> 20122 | F12: =E12-B12 -> 122

Sheet Feuil2
M1: =1.95*2 -> 3.9 | N1: =3.9*2 -> 7.8 | O1: =9.5*2 -> 19
A2: 20000 | B2: 0.01 | C2: =A2*(1+B2) -> 20200 | D2: =(A2/2000)*N$1 -> 78 | E2: =C2-D2 -> 20122 | F2: =E2-A2 -> 122 | G2: =2000/F2 -> 16.39344262 | H2: =F2/2 -> 61
A3: 22000 | B3: 0.01 | C3: =A3*(1+B3) -> 22220 | D3: =(A3/2000)*N$1 -> 85.8 | E3: =C3-D3 -> 22134.2 | F3: =E3-A3 -> 134.2 | G3: =2000/F3 -> 14.90312966 | H3: =F3/2 -> 67.1
A4: 24000 | B4: 0.01 | C4: =A4*(1+B4) -> 24240 | D4: =(A4/2000)*N$1 -> 93.6 | E4: =C4-D4 -> 24146.4 | F4: =E4-A4 -> 146.4 | G4: =2000/F4 -> 13.66120219 | H4: =F4/2 -> 73.2
A5: 26000 | B5: 0.01 | C5: =A5*(1+B5) -> 26260 | D5: =(A5/2000)*N$1 -> 101.4 | E5: =C5-D5 -> 26158.6 | F5: =E5-A5 -> 158.6 | G5: =2000/F5 -> 12.61034048 | H5: =F5/2 -> 79.3
A6: 28000 | B6: 0.01 | C6: =A6*(1+B6) -> 28280 | D6: =(A6/2000)*N$1 -> 109.2 | E6: =C6-D6 -> 28170.8 | F6: =E6-A6 -> 170.8 | G6: =2000/F6 -> 11.70960187 | H6: =F6/2 -> 85.4
A7: 30000 | B7: 0.01 | C7: =A7*(1+B7) -> 30300 | D7: =(A7/2000)*N$1 -> 117 | E7: =C7-D7 -> 30183 | F7: =E7-A7 -> 183 | G7: =2000/F7 -> 10.92896175 | H7: =F7/2 -> 91.5
A8: 32000 | B8: 0.01 | C8: =A8*(1+B8) -> 32320 | D8: =(A8/2000)*N$1 -> 124.8 | E8: =C8-D8 -> 32195.2 | F8: =E8-A8 -> 195.2 | G8: =2000/F8 -> 10.24590164 | H8: =F8/2 -> 97.6
A9: 34000 | B9: 0.01 | C9: =A9*(1+B9) -> 34340 | D9: =(A9/2000)*N$1 -> 132.6 | E9: =C9-D9 -> 34207.4 | F9: =E9-A9 -> 207.4 | G9: =2000/F9 -> 9.643201543 | H9: =F9/2 -> 103.7
A10: 36000 | B10: 0.01 | C10: =A10*(1+B10) -> 36360 | D10: =(A10/2000)*N$1 -> 140.4 | E10: =C10-D10 -> 36219.6 | F10: =E10-A10 -> 219.6 | G10: =2000/F10 -> 9.107468124 | H10: =F10/2 -> 109.8
A11: 38000 | B11: 0.01 | C11: =A11*(1+B11) -> 38380 | D11: =(A11/2000)*N$1 -> 148.2 | E11: =C11-D11 -> 38231.8 | F11: =E11-A11 -> 231.8 | G11: =2000/F11 -> 8.628127696 | H11: =F11/2 -> 115.9
A12: 40000 | B12: 0.01 | C12: =A12*(1+B12) -> 40400 | D12: =(A12/2000)*N$1 -> 156 | E12: =C12-D12 -> 40244 | F12: =E12-A12 -> 244 | G12: =2000/F12 -> 8.196721311 | H12: =F12/2 -> 122
A13: 42000 | B13: 0.01 | C13: =A13*(1+B13) -> 42420 | D13: =(A13/2000)*N$1 -> 163.8 | E13: =C13-D13 -> 42256.2 | F13: =E13-A13 -> 256.2 | G13: =2000/F13 -> 7.806401249 | H13: =F13/2 -> 128.1
A14: 44000 | B14: 0.01 | C14: =A14*(1+B14) -> 44440 | D14: =(A14/2000)*N$1 -> 171.6 | E14: =C14-D14 -> 44268.4 | F14: =E14-A14 -> 268.4 | G14: =2000/F14 -> 7.451564829 | H14: =F14/2 -> 134.2
A15: 46000 | B15: 0.01 | C15: =A15*(1+B15) -> 46460 | D15: =(A15/2000)*N$1 -> 179.4 | E15: =C15-D15 -> 46280.6 | F15: =E15-A15 -> 280.6 | G15: =2000/F15 -> 7.127583749 | H15: =F15/2 -> 140.3
A16: 48000 | B16: 0.01 | C16: =A16*(1+B16) -> 48480 | D16: =(A16/2000)*N$1 -> 187.2 | E16: =C16-D16 -> 48292.8 | F16: =E16-A16 -> 292.8 | G16: =2000/F16 -> 6.830601093 | H16: =F16/2 -> 146.4
A17: 50000 | B17: 0.01 | C17: =A17*(1+B17) -> 50500 | D17: =(A17/2000)*N$1 -> 195 | E17: =C17-D17 -> 50305 | F17: =E17-A17 -> 305 | G17: =2000/F17 -> 6.557377049 | H17: =F17/2 -> 152.5
A18: 52000 | B18: 0.01 | C18: =A18*(1+B18) -> 52520 | D18: =(A18/2000)*N$1 -> 202.8 | E18: =C18-D18 -> 52317.2 | F18: =E18-A18 -> 317.2 | G18: =2000/F18 -> 6.30517024 | H18: =F18/2 -> 158.6
A19: 54000 | B19: 0.01 | C19: =A19*(1+B19) -> 54540 | D19: =(A19/2000)*N$1 -> 210.6 | E19: =C19-D19 -> 54329.4 | F19: =E19-A19 -> 329.4 | G19: =2000/F19 -> 6.071645416 | H19: =F19/2 -> 164.7
A20: 56000 | B20: 0.01 | C20: =A20*(1+B20) -> 56560 | D20: =(A20/2000)*N$1 -> 218.4 | E20: =C20-D20 -> 56341.6 | F20: =E20-A20 -> 341.6 | G20: =2000/F20 -> 5.854800937 | H20: =F20/2 -> 170.8
A21: 58000 | B21: 0.01 | C21: =A21*(1+B21) -> 58580 | D21: =(A21/2000)*N$1 -> 226.2 | E21: =C21-D21 -> 58353.8 | F21: =E21-A21 -> 353.8 | G21: =2000/F21 -> 5.652911249 | H21: =F21/2 -> 176.9
A22: 60000 | B22: 0.01 | C22: =A22*(1+B22) -> 60600 | D22: =(A22/2000)*N$1 -> 234 | E22: =C22-D22 -> 60366 | F22: =E22-A22 -> 366 | G22: =2000/F22 -> 5.464480874 | H22: =F22/2 -> 183
A23: 62000 | B23: 0.01 | C23: =A23*(1+B23) -> 62620 | D23: =(A23/2000)*N$1 -> 241.8 | E23: =C23-D23 -> 62378.2 | F23: =E23-A23 -> 378.2 | G23: =2000/F23 -> 5.288207298 | H23: =F23/2 -> 189.1
A24: 64000 | B24: 0.01 | C24: =A24*(1+B24) -> 64640 | D24: =(A24/2000)*N$1 -> 249.6 | E24: =C24-D24 -> 64390.4 | F24: =E24-A24 -> 390.4 | G24: =2000/F24 -> 5.12295082 | H24: =F24/2 -> 195.2
A25: 66000 | B25: 0.01 | C25: =A25*(1+B25) -> 66660 | D25: =(A25/2000)*N$1 -> 257.4 | E25: =C25-D25 -> 66402.6 | F25: =E25-A25 -> 402.6 | G25: =2000/F25 -> 4.967709886 | H25: =F25/2 -> 201.3
A26: 68000 | B26: 0.01 | C26: =A26*(1+B26) -> 68680 | D26: =(A26/2000)*N$1 -> 265.2 | E26: =C26-D26 -> 68414.8 | F26: =E26-A26 -> 414.8 | G26: =2000/F26 -> 4.821600771 | H26: =F26/2 -> 207.4
A27: 70000 | B27: 0.01 | C27: =A27*(1+B27) -> 70700 | D27: =(A27/2000)*N$1 -> 273 | E27: =C27-D27 -> 70427 | F27: =E27-A27 -> 427 | G27: =2000/F27 -> 4.683840749 | H27: =F27/2 -> 213.5
A28: 72000 | B28: 0.01 | C28: =A28*(1+B28) -> 72720 | D28: =(A28/2000)*N$1 -> 280.8 | E28: =C28-D28 -> 72439.2 | F28: =E28-A28 -> 439.2 | G28: =2000/F28 -> 4.553734062 | H28: =F28/2 -> 219.6
A29: 74000 | B29: 0.01 | C29: =A29*(1+B29) -> 74740 | D29: =(A29/2000)*N$1 -> 288.6 | E29: =C29-D29 -> 74451.4 | F29: =E29-A29 -> 451.4 | G29: =2000/F29 -> 4.430660168 | H29: =F29/2 -> 225.7
A30: 76000 | B30: 0.01 | C30: =A30*(1+B30) -> 76760 | D30: =(A30/2000)*N$1 -> 296.4 | E30: =C30-D30 -> 76463.6 | F30: =E30-A30 -> 463.6 | G30: =2000/F30 -> 4.314063848 | H30: =F30/2 -> 231.8
A31: 78000 | B31: 0.01 | C31: =A31*(1+B31) -> 78780 | D31: =(A31/2000)*N$1 -> 304.2 | E31: =C31-D31 -> 78475.8 | F31: =E31-A31 -> 475.8 | G31: =2000/F31 -> 4.203446826 | H31: =F31/2 -> 237.9
A32: 80000 | B32: 0.01 | C32: =A32*(1+B32) -> 80800 | D32: =(A32/2000)*N$1 -> 312 | E32: =C32-D32 -> 80488 | F32: =E32-A32 -> 488 | G32: =2000/F32 -> 4.098360656 | H32: =F32/2 -> 244
A33: 82000 | B33: 0.01 | C33: =A33*(1+B33) -> 82820 | D33: =(A33/2000)*N$1 -> 319.8 | E33: =C33-D33 -> 82500.2 | F33: =E33-A33 -> 500.2 | G33: =2000/F33 -> 3.99840064 | H33: =F33/2 -> 250.1
A34: 84000 | B34: 0.01 | C34: =A34*(1+B34) -> 84840 | D34: =(A34/2000)*N$1 -> 327.6 | E34: =C34-D34 -> 84512.4 | F34: =E34-A34 -> 512.4 | G34: =2000/F34 -> 3.903200625 | H34: =F34/2 -> 256.2
A35: 86000 | B35: 0.01 | C35: =A35*(1+B35) -> 86860 | D35: =(A35/2000)*N$1 -> 335.4 | E35: =C35-D35 -> 86524.6 | F35: =E35-A35 -> 524.6 | G35: =2000/F35 -> 3.812428517 | H35: =F35/2 -> 262.3
A36: 88000 | B36: 0.01 | C36: =A36*(1+B36) -> 88880 | D36: =(A36/2000)*N$1 -> 343.2 | E36: =C36-D36 -> 88536.8 | F36: =E36-A36 -> 536.8 | G36: =2000/F36 -> 3.725782414 | H36: =F36/2 -> 268.4
A37: 90000 | B37: 0.01 | C37: =A37*(1+B37) -> 90900 | D37: =(A37/2000)*N$1 -> 351 | E37: =C37-D37 -> 90549 | F37: =E37-A37 -> 549 | G37: =2000/F37 -> 3.64298725 | H37: =F37/2 -> 274.5
A38: 92000 | B38: 0.01 | C38: =A38*(1+B38) -> 92920 | D38: =(A38/2000)*N$1 -> 358.8 | E38: =C38-D38 -> 92561.2 | F38: =E38-A38 -> 561.2 | G38: =2000/F38 -> 3.563791875 | H38: =F38/2 -> 280.6
A39: 94000 | B39: 0.01 | C39: =A39*(1+B39) -> 94940 | D39: =(A39/2000)*N$1 -> 366.6 | E39: =C39-D39 -> 94573.4 | F39: =E39-A39 -> 573.4 | G39: =2000/F39 -> 3.487966516 | H39: =F39/2 -> 286.7
A40: 96000 | B40: 0.01 | C40: =A40*(1+B40) -> 96960 | D40: =(A40/2000)*N$1 -> 374.4 | E40: =C40-D40 -> 96585.6 | F40: =E40-A40 -> 585.6 | G40: =2000/F40 -> 3.415300546 | H40: =F40/2 -> 292.8
A41: 98000 | B41: 0.01 | C41: =A41*(1+B41) -> 98980 | D41: =(A41/2000)*N$1 -> 382.2 | E41: =C41-D41 -> 98597.8 | F41: =E41-A41 -> 597.8 | G41: =2000/F41 -> 3.345600535 | H41: =F41/2 -> 298.9
A42: 100000 | B42: 0.01 | C42: =A42*(1+B42) -> 101000 | D42: =(A42/2000)*N$1 -> 390 | E42: =C42-D42 -> 100610 | F42: =E42-A42 -> 610 | G42: =2000/F42 -> 3.278688525 | H42: =F42/2 -> 305

Sheet Feuil3
B1: 6mois | C1: 3mois | D1: 1 mois | E1: 1 semaine | F1: 1 jours | G1: 1H
A2: Niveau de confiance General | B2: nb entre -1 et 1
A3: Niveau de confiance par action
